[Event "Early-Titled-Tuesday-Blitz-May-28-2024"]
[Site "Chess.com"]
[Date "2024.05.28"]
[Round "3"]
[White "YouJustFoundYourGodfather"]
[Black "ajedrez1101"]
[Result "1-0"]
[WhiteElo "2598"]
[BlackElo "2356"]
[TimeControl "180+1"]
[EndTime "8:27:22 PDT"]
[Termination "YouJustFoundYourGodfather won by resignation"]

1. c4 {[%clk 0:02:56.9]} 1... b6 {[%clk 0:03:00.5]} 2. Nc3 {[%clk 0:02:54.7]}
2... Bb7 {[%clk 0:03:00.9]} 3. Nf3 {[%clk 0:02:55]} 3... e6 {[%clk 0:02:59.5]}
4. g3 {[%clk 0:02:54.9]} 4... Bb4 {[%clk 0:02:59.3]} 5. Bg2 {[%clk 0:02:50.1]}
5... f5 {[%clk 0:02:59.4]} 6. O-O {[%clk 0:02:50.4]} 6... Bxc3 {[%clk
0:02:57.4]} 7. bxc3 {[%clk 0:02:50.4]} 7... Nf6 {[%clk 0:02:57.2]} 8. d3 {[%clk
0:02:50.6]} 8... O-O {[%clk 0:02:56.9]} 9. a4 {[%clk 0:02:49.8]} 9... a5 {[%clk
0:02:56.4]} 10. Rb1 {[%clk 0:02:40.9]} 10... d6 {[%clk 0:02:30.3]} 11. Re1
{[%clk 0:02:35.6]} 11... Qe7 {[%clk 0:02:24.8]} 12. Ba3 {[%clk 0:02:31.6]} 12...
Nbd7 {[%clk 0:02:23.8]} 13. e3 {[%clk 0:02:23.4]} 13... Rab8 {[%clk 0:02:21.7]}
14. Qc2 {[%clk 0:02:22.2]} 14... Nc5 {[%clk 0:02:15.5]} 15. Bxc5 {[%clk
0:02:16.1]} 15... dxc5 {[%clk 0:02:15.1]} 16. Ne5 {[%clk 0:02:13.5]} 16... Bxg2
{[%clk 0:02:09.9]} 17. Kxg2 {[%clk 0:02:14.4]} 17... Qd6 {[%clk 0:02:09.2]} 18.
d4 {[%clk 0:02:14.6]} 18... Rfd8 {[%clk 0:02:04]} 19. Red1 {[%clk 0:02:09.9]}
19... Ng4 {[%clk 0:01:52]} 20. Nxg4 {[%clk 0:02:06.9]} 20... fxg4 {[%clk
0:01:52.9]} 21. Qe4 {[%clk 0:02:07.3]} 21... Re8 {[%clk 0:01:48.4]} 22. Qxg4
{[%clk 0:02:01.5]} 22... Qc6+ {[%clk 0:01:44.4]} 23. d5 {[%clk 0:02:00.3]} 23...
Qxa4 {[%clk 0:01:33.7]} 24. h4 {[%clk 0:01:56.7]} 24... exd5 {[%clk 0:01:29.3]}
25. Rxd5 {[%clk 0:01:57.6]} 25... Qc2 {[%clk 0:01:20.5]} 26. Rd7 {[%clk
0:01:50]} 26... Qe4+ {[%clk 0:01:20.3]} 27. Qxe4 {[%clk 0:01:50]} 27... Rxe4
{[%clk 0:01:21.2]} 28. Rxc7 {[%clk 0:01:49.5]} 28... Rxc4 {[%clk 0:01:20.9]} 29.
Rd1 {[%clk 0:01:49.6]} 29... Kh8 {[%clk 0:01:11.8]} 30. Rd6 {[%clk 0:01:41.9]}
30... h6 {[%clk 0:01:06.3]} 31. Rg6 {[%clk 0:01:40.4]} 31... a4 {[%clk
0:00:52.2]} 32. Rgxg7 {[%clk 0:01:36.8]} 32... a3 {[%clk 0:00:50.7]} 33. Rh7+
{[%clk 0:01:32.8]} 33... Kg8 {[%clk 0:00:49.9]} 34. Rcg7+ {[%clk 0:01:33.2]}
34... Kf8 {[%clk 0:00:50.2]} 35. Ra7 {[%clk 0:01:34.1]} 35... Kg8 {[%clk
0:00:49.1]} 36. Rxh6 {[%clk 0:01:28.1]} 36... Rxc3 {[%clk 0:00:48.2]} 37. h5
{[%clk 0:01:25.2]} 37... b5 {[%clk 0:00:39.4]} 38. Rhh7 {[%clk 0:01:25.1]} 38...
a2 {[%clk 0:00:33.9]} 39. Rag7+ {[%clk 0:01:20.7]} 1-0

[Event "Early-Titled-Tuesday-Blitz-May-28-2024"]
[Site "Chess.com"]
[Date "2024.05.28"]
[Round "3"]
[White "CixPer1968"]
[Black "David_George21"]
[Result "0-1"]
[WhiteElo "2145"]
[BlackElo "2410"]
[TimeControl "180+1"]
[EndTime "8:27:25 PDT"]
[Termination "David_George21 won by resignation"]

1. d4 {[%clk 0:02:54.5]} 1... Nf6 {[%clk 0:02:58.9]} 2. c4 {[%clk 0:02:48.5]}
2... e6 {[%clk 0:02:57.4]} 3. Nf3 {[%clk 0:02:47.5]} 3... d5 {[%clk 0:02:56.2]}
4. Nc3 {[%clk 0:02:44.6]} 4... c5 {[%clk 0:02:55.6]} 5. cxd5 {[%clk 0:02:44.3]}
5... Nxd5 {[%clk 0:02:56.5]} 6. e4 {[%clk 0:02:43.6]} 6... Nxc3 {[%clk 0:02:57]}
7. bxc3 {[%clk 0:02:43.1]} 7... cxd4 {[%clk 0:02:57.9]} 8. cxd4 {[%clk
0:02:43.8]} 8... Bb4+ {[%clk 0:02:58.5]} 9. Bd2 {[%clk 0:02:44.4]} 9... Bxd2+
{[%clk 0:02:59.4]} 10. Qxd2 {[%clk 0:02:44.3]} 10... O-O {[%clk 0:03:00.3]} 11.
Be2 {[%clk 0:02:42.8]} 11... Nc6 {[%clk 0:02:57.3]} 12. Rc1 {[%clk 0:02:38.7]}
12... Qa5 {[%clk 0:02:50.8]} 13. Qxa5 {[%clk 0:02:35.4]} 13... Nxa5 {[%clk
0:02:51.7]} 14. O-O {[%clk 0:02:29.9]} 14... b6 {[%clk 0:02:50.3]} 15. Rfd1
{[%clk 0:02:22.4]} 15... Bb7 {[%clk 0:02:48.9]} 16. d5 {[%clk 0:01:56.2]} 16...
Rfd8 {[%clk 0:02:25]} 17. dxe6 {[%clk 0:01:50.7]} 17... fxe6 {[%clk 0:02:25.5]}
18. e5 {[%clk 0:01:45.8]} 18... Bd5 {[%clk 0:02:21.2]} 19. a3 {[%clk 0:01:21.3]}
19... Rac8 {[%clk 0:02:15.1]} 20. Ba6 {[%clk 0:01:10.9]} 20... Rxc1 {[%clk
0:01:57.7]} 21. Rxc1 {[%clk 0:01:11.8]} 21... Nb3 {[%clk 0:01:27.1]} 22. Rc7
{[%clk 0:01:05.3]} 22... Nc5 {[%clk 0:01:03.5]} 23. Rxa7 {[%clk 0:01:00.3]}
23... Nxa6 {[%clk 0:01:00.2]} 24. Rxa6 {[%clk 0:00:59.2]} 24... Bc4 {[%clk
0:01:00.1]} 0-1

[Event "Early-Titled-Tuesday-Blitz-May-28-2024"]
[Site "Chess.com"]
[Date "2024.05.28"]
[Round "3"]
[White "Alphafischer2019"]
[Black "Alexander_Donchenko"]
[Result "0-1"]
[WhiteElo "2680"]
[BlackElo "2908"]
[TimeControl "180+1"]
[EndTime "8:27:26 PDT"]
[Termination "Alexander_Donchenko won by checkmate"]

1. Nf3 {[%clk 0:03:00.9]} 1... Nf6 {[%clk 0:02:59.7]} 2. g3 {[%clk 0:02:59.3]}
2... b5 {[%clk 0:03:00]} 3. Bg2 {[%clk 0:02:58.9]} 3... Bb7 {[%clk 0:03:00.6]}
4. O-O {[%clk 0:02:59]} 4... e6 {[%clk 0:03:01.1]} 5. b3 {[%clk 0:02:57.2]} 5...
c5 {[%clk 0:03:01.1]} 6. c4 {[%clk 0:02:56]} 6... a6 {[%clk 0:03:00.1]} 7. Bb2
{[%clk 0:02:55.5]} 7... Be7 {[%clk 0:03:00]} 8. d4 {[%clk 0:02:51.2]} 8... cxd4
{[%clk 0:02:59.7]} 9. Qxd4 {[%clk 0:02:51.8]} 9... O-O {[%clk 0:02:57]} 10. Nbd2
{[%clk 0:02:41.6]} 10... Nc6 {[%clk 0:02:55.2]} 11. Qf4 {[%clk 0:02:39.9]} 11...
Qb8 {[%clk 0:02:47.4]} 12. Qh4 {[%clk 0:02:10.5]} 12... Rc8 {[%clk 0:02:34.9]}
13. Ne4 {[%clk 0:02:09.2]} 13... Nxe4 {[%clk 0:02:21.2]} 14. Qxe4 {[%clk
0:02:09.5]} 14... bxc4 {[%clk 0:02:19.8]} 15. Qxc4 {[%clk 0:02:01.1]} 15... Bf8
{[%clk 0:02:14.6]} 16. Ng5 {[%clk 0:01:42.9]} 16... h6 {[%clk 0:02:09.2]} 17.
Nf3 {[%clk 0:01:36]} 17... a5 {[%clk 0:02:06.7]} 18. Rfd1 {[%clk 0:01:34.1]}
18... d5 {[%clk 0:02:03.7]} 19. Qg4 {[%clk 0:01:30.8]} 19... Ba6 {[%clk
0:02:01.6]} 20. Nd4 {[%clk 0:01:26]} 20... Nxd4 {[%clk 0:01:55.9]} 21. Bxd4
{[%clk 0:01:26.9]} 21... Rc2 {[%clk 0:01:54.4]} 22. Re1 {[%clk 0:01:18.9]} 22...
Qb4 {[%clk 0:01:53.2]} 23. h3 {[%clk 0:01:06.9]} 23... Rac8 {[%clk 0:01:50.9]}
24. e3 {[%clk 0:01:03.1]} 24... Qd2 {[%clk 0:01:47.8]} 25. Qf4 {[%clk
0:00:56.8]} 25... Rxa2 {[%clk 0:01:44]} 26. Rxa2 {[%clk 0:00:57]} 26... Qxe1+
{[%clk 0:01:40.7]} 27. Kh2 {[%clk 0:00:56.4]} 27... Rc1 {[%clk 0:01:41.3]} 28.
h4 {[%clk 0:00:43.6]} 28... Qg1+ {[%clk 0:01:34.9]} 29. Kh3 {[%clk 0:00:43.2]}
29... Bf1 {[%clk 0:01:35.6]} 30. Bxf1 {[%clk 0:00:42.5]} 30... Qxf1+ {[%clk
0:01:35.9]} 31. Kg4 {[%clk 0:00:43.2]} 31... f5+ {[%clk 0:01:29]} 32. Kh5 {[%clk
0:00:40.7]} 32... Kh7 {[%clk 0:01:28.8]} 33. Qg5 {[%clk 0:00:04.8]} 33... hxg5
{[%clk 0:01:27.9]} 34. hxg5 {[%clk 0:00:05.5]} 34... Qh3# {[%clk 0:01:26.2]} 0-1

[Event "Early-Titled-Tuesday-Blitz-May-28-2024"]
[Site "Chess.com"]
[Date "2024.05.28"]
[Round "3"]
[White "MatthewG-p4p"]
[Black "Pomegranate988"]
[Result "1-0"]
[WhiteElo "2893"]
[BlackElo "2658"]
[TimeControl "180+1"]
[EndTime "8:27:26 PDT"]
[Termination "MatthewG-p4p won by resignation"]

1. e4 {[%clk 0:02:52.1]} 1... c6 {[%clk 0:03:00.1]} 2. d4 {[%clk 0:02:50.6]}
2... g6 {[%clk 0:03:01]} 3. h4 {[%clk 0:02:46.3]} 3... h5 {[%clk 0:02:53.4]} 4.
c4 {[%clk 0:02:41]} 4... Bg7 {[%clk 0:02:50.7]} 5. Nc3 {[%clk 0:02:40.8]} 5...
d6 {[%clk 0:02:49.9]} 6. Be3 {[%clk 0:02:37.9]} 6... Nf6 {[%clk 0:02:46.4]} 7.
f3 {[%clk 0:02:37]} 7... a6 {[%clk 0:02:39.2]} 8. Nh3 {[%clk 0:02:33.8]} 8... b5
{[%clk 0:02:36.4]} 9. a3 {[%clk 0:02:30.7]} 9... bxc4 {[%clk 0:02:30.1]} 10.
Bxc4 {[%clk 0:02:30.4]} 10... d5 {[%clk 0:02:30.6]} 11. Ba2 {[%clk 0:02:17.3]}
11... Bxh3 {[%clk 0:02:28.7]} 12. Rxh3 {[%clk 0:02:17]} 12... e6 {[%clk
0:02:28.7]} 13. e5 {[%clk 0:02:11.6]} 13... Ng8 {[%clk 0:02:15.5]} 14. Qd2
{[%clk 0:02:08.2]} 14... Ne7 {[%clk 0:02:12.3]} 15. g4 {[%clk 0:02:06.2]} 15...
Nd7 {[%clk 0:02:07.9]} 16. Na4 {[%clk 0:01:55.8]} 16... c5 {[%clk 0:02:05.4]}
17. Nxc5 {[%clk 0:01:47.3]} 17... Nxc5 {[%clk 0:02:05.2]} 18. dxc5 {[%clk
0:01:48.2]} 18... Bxe5 {[%clk 0:02:03.6]} 19. Rd1 {[%clk 0:01:22.5]} 19... Qc7
{[%clk 0:02:00.2]} 20. b4 {[%clk 0:01:18.5]} 20... hxg4 {[%clk 0:01:55.3]} 21.
fxg4 {[%clk 0:01:17.9]} 21... Rxh4 {[%clk 0:01:53.6]} 22. Rxh4 {[%clk
0:01:16.7]} 22... Bg3+ {[%clk 0:01:53.2]} 23. Bf2 {[%clk 0:01:17.4]} 23... Bxh4
{[%clk 0:01:36.2]} 24. Bxh4 {[%clk 0:01:17.6]} 24... Qe5+ {[%clk 0:01:36.2]} 25.
Kf1 {[%clk 0:01:07.4]} 25... Nc6 {[%clk 0:01:21.3]} 26. Qf2 {[%clk 0:00:56.7]}
26... Qe4 {[%clk 0:01:02.5]} 27. Bxd5 {[%clk 0:00:52.2]} 27... Qxg4 {[%clk
0:00:59.7]} 28. Bxc6+ {[%clk 0:00:51.8]} 28... Kf8 {[%clk 0:01:00.3]} 29. Be7+
{[%clk 0:00:48.7]} 29... Kg8 {[%clk 0:00:54.8]} 30. Rd4 {[%clk 0:00:40.9]} 30...
Qh3+ {[%clk 0:00:48.6]} 31. Bg2 {[%clk 0:00:41.6]} 1-0

[Event "Early-Titled-Tuesday-Blitz-May-28-2024"]
[Site "Chess.com"]
[Date "2024.05.28"]
[Round "3"]
[White "CarlosAlbornoz"]
[Black "subham777"]
[Result "1-0"]
[WhiteElo "2843"]
[BlackElo "2567"]
[TimeControl "180+1"]
[EndTime "8:27:31 PDT"]
[Termination "CarlosAlbornoz won by checkmate"]

1. Nf3 {[%clk 0:03:00.9]} 1... d5 {[%clk 0:02:58.9]} 2. g3 {[%clk 0:03:00]} 2...
Nf6 {[%clk 0:02:58.5]} 3. Bg2 {[%clk 0:03:00.2]} 3... e6 {[%clk 0:02:58.7]} 4.
O-O {[%clk 0:03:00.5]} 4... Be7 {[%clk 0:02:59]} 5. c4 {[%clk 0:03:00.8]} 5...
O-O {[%clk 0:02:58.9]} 6. d4 {[%clk 0:03:00.9]} 6... Ne4 {[%clk 0:02:43.3]} 7.
Qc2 {[%clk 0:02:58.3]} 7... f5 {[%clk 0:02:30.7]} 8. Bf4 {[%clk 0:02:55.9]} 8...
c6 {[%clk 0:02:30.7]} 9. Nbd2 {[%clk 0:02:51.3]} 9... Nd7 {[%clk 0:02:28.1]} 10.
Ne5 {[%clk 0:02:41.5]} 10... Nxe5 {[%clk 0:02:14.1]} 11. Bxe5 {[%clk 0:02:41.4]}
11... Bf6 {[%clk 0:02:00.7]} 12. Bxf6 {[%clk 0:02:33.7]} 12... Qxf6 {[%clk
0:01:59.9]} 13. e3 {[%clk 0:02:33.9]} 13... Bd7 {[%clk 0:01:45]} 14. b4 {[%clk
0:02:33.6]} 14... Nxd2 {[%clk 0:01:37.6]} 15. Qxd2 {[%clk 0:02:33.6]} 15... dxc4
{[%clk 0:01:37.5]} 16. a4 {[%clk 0:02:32.4]} 16... Rac8 {[%clk 0:00:40.7]} 17.
Qc3 {[%clk 0:01:54.6]} 17... b5 {[%clk 0:00:40]} 18. axb5 {[%clk 0:01:55.5]}
18... cxb5 {[%clk 0:00:40.2]} 19. Rxa7 {[%clk 0:01:56.4]} 19... Bc6 {[%clk
0:00:40.7]} 20. Bxc6 {[%clk 0:01:51.9]} 20... Rxc6 {[%clk 0:00:41.6]} 21. Rfa1
{[%clk 0:01:52.3]} 21... Rb8 {[%clk 0:00:35.4]} 22. Rd7 {[%clk 0:01:48.5]} 22...
Rd8 {[%clk 0:00:13.5]} 23. Rb7 {[%clk 0:01:45.8]} 23... h5 {[%clk 0:00:05.9]}
24. Raa7 {[%clk 0:01:45.2]} 24... h4 {[%clk 0:00:05.5]} 25. Rxg7+ {[%clk
0:01:43.3]} 25... Kh8 {[%clk 0:00:01]} 26. Rgf7 {[%clk 0:01:33.6]} 26... Qh6
{[%clk 0:00:01]} 27. d5+ {[%clk 0:01:33.1]} 27... Kg8 {[%clk 0:00:01.2]} 28.
Rg7+ {[%clk 0:01:30.8]} 28... Kf8 {[%clk 0:00:01.6]} 29. Rg6 {[%clk 0:01:19]}
29... Qh5 {[%clk 0:00:01]} 30. Qg7+ {[%clk 0:01:17.6]} 30... Ke8 {[%clk
0:00:01.2]} 31. Qf7# {[%clk 0:01:17.6]} 1-0

[Event "Early-Titled-Tuesday-Blitz-May-28-2024"]
[Site "Chess.com"]
[Date "2024.05.28"]
[Round "3"]
[White "Nitzan_Steinberg"]
[Black "JeFumeDesClopes"]
[Result "0-1"]
[WhiteElo "2896"]
[BlackElo "2707"]
[TimeControl "180+1"]
[EndTime "8:27:33 PDT"]
[Termination "JeFumeDesClopes won by resignation"]

1. e4 {[%clk 0:03:00.9]} 1... g6 {[%clk 0:03:00.1]} 2. d4 {[%clk 0:03:00.9]}
2... Bg7 {[%clk 0:03:00.5]} 3. Nc3 {[%clk 0:03:01.3]} 3... d6 {[%clk 0:03:01]}
4. Nf3 {[%clk 0:03:01.5]} 4... Nf6 {[%clk 0:02:58.3]} 5. Be3 {[%clk 0:03:01]}
5... a6 {[%clk 0:02:56.9]} 6. Bd3 {[%clk 0:02:57.2]} 6... Nc6 {[%clk 0:02:50.3]}
7. Qd2 {[%clk 0:02:50.5]} 7... Ng4 {[%clk 0:02:48.2]} 8. O-O-O {[%clk
0:02:30.3]} 8... Nxe3 {[%clk 0:02:40]} 9. fxe3 {[%clk 0:02:30.4]} 9... e5 {[%clk
0:02:27.6]} 10. Qf2 {[%clk 0:02:07.7]} 10... O-O {[%clk 0:02:14.7]} 11. Rdf1
{[%clk 0:02:00.4]} 11... exd4 {[%clk 0:01:58.1]} 12. exd4 {[%clk 0:01:58.3]}
12... Bg4 {[%clk 0:01:58.6]} 13. Ne2 {[%clk 0:01:53.3]} 13... Nb4 {[%clk
0:01:32.6]} 14. Kb1 {[%clk 0:01:52.9]} 14... c5 {[%clk 0:01:25.5]} 15. h3 {[%clk
0:01:44.9]} 15... Be6 {[%clk 0:01:06.9]} 16. d5 {[%clk 0:01:37.9]} 16... Bd7
{[%clk 0:01:06.1]} 17. a3 {[%clk 0:01:36.3]} 17... Nxd3 {[%clk 0:01:04.1]} 18.
cxd3 {[%clk 0:01:37.2]} 18... b5 {[%clk 0:00:58.6]} 19. h4 {[%clk 0:01:32.5]}
19... h6 {[%clk 0:00:58.6]} 20. h5 {[%clk 0:01:32.3]} 20... g5 {[%clk
0:00:54.5]} 21. Ng3 {[%clk 0:01:20.2]} 21... b4 {[%clk 0:00:54.8]} 22. axb4
{[%clk 0:01:12.6]} 22... Rb8 {[%clk 0:00:53.1]} 23. bxc5 {[%clk 0:00:59.5]}
23... Rxb2+ {[%clk 0:00:47.6]} 24. Qxb2 {[%clk 0:00:59.7]} 24... Bxb2 {[%clk
0:00:48.4]} 25. Kxb2 {[%clk 0:01:00.6]} 25... Qa5 {[%clk 0:00:39.8]} 26. Rb1
{[%clk 0:00:36.9]} 26... Rb8+ {[%clk 0:00:37.8]} 27. Kc2 {[%clk 0:00:31.8]}
27... Qa2+ {[%clk 0:00:37.8]} 0-1

[Event "Early-Titled-Tuesday-Blitz-May-28-2024"]
[Site "Chess.com"]
[Date "2024.05.28"]
[Round "3"]
[White "Timerkhanov"]
[Black "vladislavkovalev"]
[Result "1-0"]
[WhiteElo "2721"]
[BlackElo "2902"]
[TimeControl "180+1"]
[EndTime "8:27:39 PDT"]
[Termination "Timerkhanov won by resignation"]

1. d4 {[%clk 0:03:00.9]} 1... Nf6 {[%clk 0:03:00.3]} 2. Bg5 {[%clk 0:02:59.7]}
2... d5 {[%clk 0:02:58.6]} 3. Nd2 {[%clk 0:02:59.5]} 3... Nbd7 {[%clk
0:02:53.1]} 4. Ngf3 {[%clk 0:02:58.7]} 4... h6 {[%clk 0:02:51.7]} 5. Bh4 {[%clk
0:02:55.2]} 5... e6 {[%clk 0:02:43.1]} 6. e3 {[%clk 0:02:54.1]} 6... Be7 {[%clk
0:02:42.7]} 7. Bd3 {[%clk 0:02:53.8]} 7... b6 {[%clk 0:02:43.1]} 8. O-O {[%clk
0:02:33.9]} 8... Bb7 {[%clk 0:02:43.1]} 9. Bxf6 {[%clk 0:02:33.4]} 9... Nxf6
{[%clk 0:02:42.7]} 10. Ne5 {[%clk 0:02:33.4]} 10... O-O {[%clk 0:02:37.6]} 11.
a4 {[%clk 0:02:24.6]} 11... c5 {[%clk 0:02:35.2]} 12. c3 {[%clk 0:02:24.3]}
12... Bd6 {[%clk 0:02:30.4]} 13. f4 {[%clk 0:02:22.7]} 13... Ne4 {[%clk
0:02:28.2]} 14. Nxe4 {[%clk 0:02:19.6]} 14... dxe4 {[%clk 0:02:29.1]} 15. Bc4
{[%clk 0:02:17]} 15... Qe7 {[%clk 0:02:21.3]} 16. Qe2 {[%clk 0:02:15.7]} 16...
a6 {[%clk 0:02:13.2]} 17. f5 {[%clk 0:02:10.7]} 17... Bxe5 {[%clk 0:02:05.5]}
18. dxe5 {[%clk 0:02:11.6]} 18... exf5 {[%clk 0:02:05.1]} 19. Rxf5 {[%clk
0:02:10.9]} 19... b5 {[%clk 0:01:52.6]} 20. axb5 {[%clk 0:02:05.2]} 20... axb5
{[%clk 0:01:53.5]} 21. Rxa8 {[%clk 0:02:05.2]} 21... Bxa8 {[%clk 0:01:54.4]} 22.
Bxb5 {[%clk 0:02:00.2]} 22... Qe6 {[%clk 0:01:52.2]} 23. Qf1 {[%clk 0:01:53.1]}
23... Rb8 {[%clk 0:01:37.6]} 24. c4 {[%clk 0:01:26.9]} 24... Rd8 {[%clk
0:01:33.5]} 25. h3 {[%clk 0:01:23.1]} 25... Bb7 {[%clk 0:01:30.9]} 26. Rf2
{[%clk 0:00:56.7]} 26... Rd3 {[%clk 0:01:25.9]} 27. Qa1 {[%clk 0:00:38.7]} 27...
Rd5 {[%clk 0:00:31.2]} 28. cxd5 {[%clk 0:00:37.2]} 1-0

[Event "Early-Titled-Tuesday-Blitz-May-28-2024"]
[Site "Chess.com"]
[Date "2024.05.28"]
[Round "3"]
[White "HansOnTwitch"]
[Black "bascheyaro"]
[Result "0-1"]
[WhiteElo "3125"]
[BlackElo "2816"]
[TimeControl "180+1"]
[EndTime "8:27:40 PDT"]
[Termination "bascheyaro won by resignation"]

1. e4 {[%clk 0:02:59.7]} 1... e6 {[%clk 0:02:59]} 2. d4 {[%clk 0:02:59.1]} 2...
d5 {[%clk 0:02:59.1]} 3. Nc3 {[%clk 0:03:00]} 3... Bb4 {[%clk 0:02:58.9]} 4.
exd5 {[%clk 0:02:57.7]} 4... exd5 {[%clk 0:02:58.9]} 5. Bd3 {[%clk 0:02:58.5]}
5... Nf6 {[%clk 0:02:58.7]} 6. Nf3 {[%clk 0:02:56.9]} 6... O-O {[%clk
0:02:58.9]} 7. O-O {[%clk 0:02:56.7]} 7... Bg4 {[%clk 0:02:58.7]} 8. h3 {[%clk
0:02:56.5]} 8... Bh5 {[%clk 0:02:58.9]} 9. Bg5 {[%clk 0:02:56.3]} 9... c6 {[%clk
0:02:58.6]} 10. g4 {[%clk 0:02:54.2]} 10... Bg6 {[%clk 0:02:58.8]} 11. Ne5
{[%clk 0:02:55]} 11... Nbd7 {[%clk 0:02:59.3]} 12. f4 {[%clk 0:02:54.4]} 12...
Bxd3 {[%clk 0:02:58.5]} 13. Qxd3 {[%clk 0:02:51.5]} 13... Bxc3 {[%clk
0:02:51.8]} 14. bxc3 {[%clk 0:02:52.4]} 14... Qc7 {[%clk 0:02:45.3]} 15. Nxd7
{[%clk 0:02:34.7]} 15... Nxd7 {[%clk 0:02:46.2]} 16. f5 {[%clk 0:02:31.6]} 16...
Rfe8 {[%clk 0:02:15.9]} 17. Rae1 {[%clk 0:02:30.7]} 17... b5 {[%clk 0:02:04.8]}
18. Bf4 {[%clk 0:02:29]} 18... Qa5 {[%clk 0:02:03.1]} 19. g5 {[%clk 0:02:28.2]}
19... Qxa2 {[%clk 0:01:59.5]} 20. f6 {[%clk 0:02:28.1]} 20... Qc4 {[%clk
0:01:57.3]} 21. Qd2 {[%clk 0:02:12]} 21... Re4 {[%clk 0:01:39.4]} 22. Rxe4
{[%clk 0:02:08]} 22... dxe4 {[%clk 0:01:40.3]} 23. fxg7 {[%clk 0:02:08.3]} 23...
Qe6 {[%clk 0:01:32.5]} 24. Kh2 {[%clk 0:02:05.9]} 24... a5 {[%clk 0:01:31.9]}
25. Qf2 {[%clk 0:01:46.9]} 25... a4 {[%clk 0:01:32]} 26. g6 {[%clk 0:01:47.2]}
26... Qxg6 {[%clk 0:01:26.6]} 27. Rg1 {[%clk 0:01:46.3]} 27... Qe6 {[%clk
0:01:24.8]} 28. Qh4 {[%clk 0:01:40.3]} 28... a3 {[%clk 0:01:15.3]} 29. Ra1
{[%clk 0:01:28]} 29... a2 {[%clk 0:01:14.9]} 30. Qg3 {[%clk 0:01:23.3]} 30...
Nb6 {[%clk 0:01:10.1]} 31. Be5 {[%clk 0:01:20.8]} 31... Nc4 {[%clk 0:01:02.3]}
32. Bf4 {[%clk 0:01:19.5]} 32... e3 {[%clk 0:00:59.1]} 33. Qh4 {[%clk
0:01:10.5]} 33... e2 {[%clk 0:00:56.8]} 34. Bh6 {[%clk 0:01:07.4]} 34... e1=Q
{[%clk 0:00:39.7]} 35. Rxe1 {[%clk 0:01:06.3]} 35... Qxe1 {[%clk 0:00:39.9]} 36.
Qxe1 {[%clk 0:01:07.2]} 36... a1=Q {[%clk 0:00:40.5]} 37. Qe7 {[%clk 0:01:07.9]}
37... Qa3 {[%clk 0:00:39.1]} 0-1

[Event "Early-Titled-Tuesday-Blitz-May-28-2024"]
[Site "Chess.com"]
[Date "2024.05.28"]
[Round "3"]
[White "Lily_Schirmbeck"]
[Black "UmarovSabir"]
[Result "0-1"]
[WhiteElo "1698"]
[BlackElo "2329"]
[TimeControl "180+1"]
[EndTime "8:27:42 PDT"]
[Termination "UmarovSabir won on time"]

1. d4 {[%clk 0:02:59.5]} 1... g6 {[%clk 0:02:57.3]} 2. Nf3 {[%clk 0:02:57.7]}
2... Bg7 {[%clk 0:02:57.2]} 3. g3 {[%clk 0:02:56.1]} 3... c6 {[%clk 0:02:56.6]}
4. Bg2 {[%clk 0:02:55.8]} 4... d5 {[%clk 0:02:57.4]} 5. O-O {[%clk 0:02:55.6]}
5... f5 {[%clk 0:02:57.6]} 6. c4 {[%clk 0:02:50.4]} 6... Nf6 {[%clk 0:02:57.7]}
7. Nc3 {[%clk 0:02:49.3]} 7... O-O {[%clk 0:02:57.5]} 8. Bf4 {[%clk 0:02:36.7]}
8... Ne4 {[%clk 0:02:55]} 9. cxd5 {[%clk 0:02:31.3]} 9... Nxc3 {[%clk
0:02:41.9]} 10. bxc3 {[%clk 0:02:30.7]} 10... cxd5 {[%clk 0:02:42.1]} 11. Be5
{[%clk 0:02:23.7]} 11... Nc6 {[%clk 0:02:38.9]} 12. Bxg7 {[%clk 0:02:19.9]}
12... Kxg7 {[%clk 0:02:39.8]} 13. Qc2 {[%clk 0:01:50.3]} 13... f4 {[%clk
0:02:38.8]} 14. Rab1 {[%clk 0:01:45.9]} 14... Qd6 {[%clk 0:02:26.2]} 15. Nd2
{[%clk 0:01:35.1]} 15... Bf5 {[%clk 0:02:25.5]} 16. Qb2 {[%clk 0:01:25.8]} 16...
Bxb1 {[%clk 0:02:24.7]} 17. Qxb1 {[%clk 0:01:25.8]} 17... b6 {[%clk 0:02:12.4]}
18. Qb2 {[%clk 0:01:22.5]} 18... Rad8 {[%clk 0:02:06.6]} 19. c4 {[%clk
0:01:17.5]} 19... e6 {[%clk 0:02:02.7]} 20. Rc1 {[%clk 0:01:00.2]} 20... Qb4
{[%clk 0:01:51.6]} 21. Qxb4 {[%clk 0:00:44.4]} 21... Nxb4 {[%clk 0:01:52.5]} 22.
a3 {[%clk 0:00:42.2]} 22... Nc6 {[%clk 0:01:38.3]} 23. cxd5 {[%clk 0:00:24.4]}
23... Nxd4 {[%clk 0:01:37.8]} 24. Kf1 {[%clk 0:00:18.2]} 24... fxg3 {[%clk
0:01:36.1]} 25. hxg3 {[%clk 0:00:16.2]} 25... exd5 {[%clk 0:01:35.9]} 26. Nf3
{[%clk 0:00:15.1]} 26... Nxf3 {[%clk 0:01:35.1]} 27. Bxf3 {[%clk 0:00:15.5]}
27... Rf7 {[%clk 0:01:33.8]} 28. Rd1 {[%clk 0:00:14.7]} 28... d4 {[%clk
0:01:33]} 29. e3 {[%clk 0:00:12.6]} 29... Rfd7 {[%clk 0:01:30]} 30. exd4 {[%clk
0:00:08.5]} 30... Rxd4 {[%clk 0:01:29.5]} 31. Rxd4 {[%clk 0:00:08]} 31... Rxd4
{[%clk 0:01:29.2]} 32. Bc6 {[%clk 0:00:03.8]} 32... h5 {[%clk 0:01:27.5]} 33.
Bb5 {[%clk 0:00:03.2]} 33... g5 {[%clk 0:01:25.7]} 34. a4 {[%clk 0:00:02.8]}
34... h4 {[%clk 0:01:25.2]} 35. Kg2 {[%clk 0:00:02.2]} 35... Kf6 {[%clk
0:01:24.6]} 0-1